bitfinex-derivatives/quotes_ETHF0:USTF0_20250314
["timestamp","ask_amount","ask_price","bid_price","bid_amount"]
[1741965305225,1.36436036,1930.8,1930.5,3.2078]
[1741965305424,1.36436036,1930.8,1930.6,1.3793]
[1741965305821,4.57216036,1930.8,1930.6,1.3793]
[1741965306725,4.57216036,1930.8,1930.2,3.2078]
[1741965306923,0.08377994,1930.7,1930.3,1.3899]
[1741965307120,5.9658,1930.6,1930.3,1.3899]
[1741965307314,3.2078,1930.4,1930.1,0.8461]
[1741965307520,1.316,1930.3,1930.2,1.3899]
[1741965308022,1.316,1930.3,1930.0,0.00517356]
[1741965308221,1.316,1930.3,1930.1,1.3899]
[1741965308422,3.2078,1930.2,1930.1,1.3899]
[1741965308826,0.08380188,1930.2,1930.1,1.3899]
[1741965309126,0.99534553,1930.5,1930.1,1.3899]
[1741965309319,0.99534553,1930.5,1930.2,3.9941]
[1741965309521,4.5947,1930.7,1930.3,1.3392]
[1741965309928,0.00776036,1930.8,1930.6,3.2078]
[1741965310124,1.3869,1931.2,1930.7,1.3392]
[1741965310324,1.3869,1931.2,1930.8,3.2078]
[1741965310630,4.20349121,1931.3,1930.9,42.1392]
[1741965310827,1.3869,1931.2,1930.9,42.1392]
[1741965311026,11.9408,1931.1,1930.0,3.21297356]
[1741965311224,3.2078,1930.8,1930.1,1.3392]
[1741965311426,5.7288,1930.7,1930.1,1.3392]
[1741965311621,11.79055405,1930.7,1930.2,3.2078]
[1741965311821,0.92625184,1930.6,1930.3,1.3694]
[1741965312017,5.45165184,1930.6,1930.4,40.8]
[1741965312932,6.13268953,1930.6,1930.4,40.8]
[1741965313335,7.12988362,1930.6,1930.5,1.3694]
[1741965313535,7.21366854,1930.6,1930.5,1.3694]
[1741965314036,2.24385184,1930.6,1930.5,1.3694]
[1741965314222,2.758,1930.7,1930.5,1.3694]
[1741965314632,4.0756,1930.7,1930.5,1.3694]
[1741965316528,3.2078,1930.6,1930.5,1.3694]
[1741965316736,4.69078501,1930.6,1930.5,1.3694]
[1741965316933,4.607,1930.6,1930.5,1.3694]
[1741965317433,1.3992,1930.6,1930.5,1.3694]
[1741965317631,1.67823087,1930.9,1930.5,4.5772]
[1741965317834,0.99713698,1930.9,1930.6,0.8232]
[1741965318133,1.67823087,1930.9,1930.7,1.4119]
[1741965318331,7.69415184,1931.0,1930.7,1.4119]
[1741965318332,7.57178271,1931.0,1930.7,1.4119]
[1741965318735,10.77958271,1931.0,1930.7,1.4119]
[1741965318938,9.10135184,1931.0,1930.7,1.4119]
[1741965319136,8.85663862,1931.0,1930.7,1.4119]
[1741965319337,8.1751,1931.0,1930.4,40.8]
[1741965319533,3.2078,1930.8,1930.6,1.4119]
[1741965320042,4.615,1930.8,1930.6,1.4119]
[1741965321530,4.615,1930.8,1930.4,40.8]
[1741965321732,3.2078,1930.6,1930.4,42.1174]
[1741965321943,1.3644,1930.5,1930.4,42.1174]
[1741965323837,1.3644,1930.5,1930.4,40.8]
[1741965324546,2.1756,1930.5,1930.4,40.8]
[1741965325043,2.25938801,1930.5,1930.0,0.00517356]
[1741965325346,3.2078,1930.3,1930.0,1.37997356]
[1741965325642,1.4125,1930.2,1930.0,1.37997356]
[1741965326035,1.4125,1930.2,1930.1,40.8]
[1741965327147,0.7923,1930.4,1930.1,40.8]
[1741965327349,1.3843,1930.4,1930.2,1.3226]
[1741965327849,6.62491495,1930.5,1930.2,1.3226]
[1741965328150,8.00921495,1930.5,1930.2,1.3226]
[1741965328447,0.08379083,1930.4,1930.2,1.3226]
[1741965328647,3.29159083,1930.4,1930.1,40.8]
[1741965328949,1.3843,1930.3,1930.1,42.1226]
[1741965329647,1.3843,1930.3,1930.2,1.3226]
[1741965330150,1.3843,1930.3,1930.1,40.8]
[1741965330344,1.3843,1930.3,1930.1,42.1138]
[1741965330643,3.41711495,1930.5,1930.2,1.3138]
[1741965330948,3.25322449,1930.5,1930.2,1.3138]
[1741965331345,0.083791,1930.4,1930.2,1.3138]
[1741965331745,1.4439,1930.3,1930.2,1.3138]
[1741965332748,2.49086311,1930.5,1930.2,1.3138]
[1741965332935,3.25322449,1930.5,1930.2,1.3138]
[1741965333253,5.74534172,1930.7,1930.2,4.5216]
[1741965333551,2.42632449,1930.7,1930.2,4.5216]
[1741965333734,3.10786311,1930.7,1930.2,4.5216]
[1741965335146,2.42632449,1930.7,1930.3,0.8792]
[1741965335348,2.10973862,1930.7,1930.4,1.3583]
[1741965335748,3.10786311,1930.7,1930.4,1.3583]
[1741965336250,3.29158572,1930.6,1930.4,1.3583]
[1741965336549,1.39438876,1930.5,1930.1,40.8]
[1741965336745,5.97858876,1930.4,1930.1,40.8]
[1741965336949,3.2078,1930.2,1930.0,0.00517356]
[1741965337151,2.18698876,1930.1,1930.0,0.00517356]
[1741965337343,3.79477922,1930.1,1930.0,40.80517356]
[1741965337543,3.79477922,1930.1,1929.6,1.4396]
[1741965337841,3.2078,1929.8,1929.7,1.4396]
[1741965338250,3.29162348,1929.8,1929.4,0.8496]
[1741965338449,5.11019046,1930.0,1929.4,0.8496]
[1741965338450,3.2078,1929.6,1929.5,1.4396]
[1741965338639,11.8748,1929.6,1929.5,40.8]
[1741965338842,14.35902503,1929.6,1929.5,40.8]
[1741965339147,16.85902503,1929.6,1928.7,2.2892]
[1741965339346,3.2078,1929.2,1928.7,2.2892]
[1741965339547,2.33995461,1929.1,1928.7,2.2892]
[1741965339846,2.2561,1929.1,1928.7,2.2892]
[1741965340049,2.2561,1929.1,1928.8,40.8]
[1741965340439,1.4417,1929.1,1928.8,44.0078]
[1741965340643,3.558,1929.4,1929.0,3.2078]
[1741965340839,5.978,1929.6,1929.2,3.2078]
[1741965341147,5.8938,1929.8,1929.3,2.1511]
[1741965341343,1.4417,1929.6,1929.5,40.8]
[1741965341650,4.6495,1929.6,1929.5,40.8]
[1741965341850,4.73333268,1929.6,1929.5,40.8]
[1741965343350,13.21133268,1929.6,1928.3,9.1778]
[1741965343657,3.2078,1929.0,1928.6,1.4396]
[1741965343852,1.3373,1928.9,1928.6,1.4396]
[1741965344356,1.3373,1928.9,1928.7,40.8]
[1741965344544,1.03699,1928.8,1928.7,40.8]
[1741965345152,16.95468024,1928.8,1927.7,3.2078]
[1741965345350,1.03737,1928.1,1928.0,1.6551]
[1741965345849,0.00776036,1928.2,1928.0,1.6551]
[1741965346053,1.03737,1928.1,1928.0,1.6551]
[1741965346554,1.03737,1928.1,1928.0,0.8122]
[1741965347444,0.00776036,1928.2,1928.0,6.52]
[1741965347755,0.00776036,1928.2,1928.1,1.03737]
[1741965348156,0.00776036,1928.2,1928.0,4.02]
[1741965348458,1.03737,1928.1,1928.0,5.05741]
[1741965348748,1.03737,1928.1,1928.0,4.02]
[1741965348962,1.03737,1928.1,1928.0,41.6122]
[1741965349149,0.00776036,1928.2,1928.0,44.82]
[1741965349452,1.03737,1928.1,1928.0,44.82]
[1741965349646,1.03737,1928.1,1928.0,41.6122]
[1741965350855,1.04509036,1928.2,1928.0,42.64958]
[1741965351052,1.04511036,1928.2,1928.0,42.64958]
[1741965351252,1.03737,1928.1,1928.0,42.64958]
[1741965351455,1.03737,1928.1,1928.0,41.6122]
[1741965351856,1.03737,1928.1,1928.0,40.8]
[1741965352155,2.47917,1928.1,1928.0,40.8]
[1741965352357,1.03737,1928.1,1928.0,40.8]
[1741965355765,0.00776036,1928.2,1928.1,1.84087]
[1741965355944,1.04507036,1928.2,1928.1,1.84087]
[1741965356248,1.04507036,1928.2,1928.1,0.8035]
[1741965356458,1.04507036,1928.2,1928.0,46.77]
[1741965356459,1.03737,1928.1,1928.0,46.77]
[1741965357551,2.48697,1928.1,1928.0,46.77]
[1741965358546,0.82226036,1928.2,1928.1,1.03737]
[1741965358751,1.04507036,1928.2,1928.1,1.03737]
[1741965358953,0.00776036,1928.2,1928.1,1.03737]
[1741965359460,0.00776036,1928.2,1928.1,4.24517]
[1741965359659,1.03712,1928.6,1928.2,2.59329]
[1741965359858,1.0372,1928.5,1928.4,1.03718]
[1741965360059,1.0372,1928.5,1928.4,1.87708]
[1741965360349,1.0372,1928.5,1928.4,0.8399]
[1741965360558,1.0372,1928.5,1928.4,40.8]
[1741965361755,5.9509,1928.5,1928.4,40.8]
[1741965361947,2.7431,1928.5,1928.4,40.8]
[1741965363161,1.37246036,1928.6,1928.4,40.8]
[1741965363363,0.00776036,1928.6,1928.5,2.40535]
[1741965363565,3.2078,1929.2,1928.5,1.3682]
[1741965363855,1.0369,1929.0,1928.9,1.03692]
[1741965364047,2.35273,1929.1,1929.0,1.3803]
[1741965364456,4.24455,1929.3,1929.0,1.3803]
[1741965364660,1.03683,1929.1,1929.0,1.3803]
[1741965364852,1.03683,1929.1,1929.0,2.41718]
[1741965365161,1.03683,1929.1,1929.0,40.8]
[1741965366057,1.03683,1929.1,1929.0,42.1803]
[1741965366363,1.32366036,1929.2,1929.0,42.1803]
[1741965366551,2.36048036,1929.2,1929.1,1.03683]
[1741965366751,2.704,1929.5,1929.3,1.0367]
[1741965367059,2.704,1929.5,1929.1,3.2078]
[1741965367255,1.3973,1929.4,1929.2,1.03674]
[1741965367464,2.43399,1929.4,1929.1,3.2078]
[1741965367760,2.43401,1929.4,1929.3,3.2078]
[1741965367950,2.44177036,1929.4,1929.3,3.2078]
[1741965368356,1.40506036,1929.4,1929.3,4.24452]
[1741965368552,2.44173036,1929.4,1929.3,4.24452]
[1741965368752,1.40506036,1929.4,1929.1,5.58828]
[1741965369154,1.40506036,1929.4,1929.2,1.3437]
[1741965369362,1.03672,1929.3,1929.2,1.3437]
[1741965369659,1.40506036,1929.4,1929.1,3.2078]
[1741965369858,1.04445036,1929.4,1929.3,4.24452]
[1741965370064,3.2078,1930.0,1929.3,4.24452]
[1741965370262,1.6863,1930.3,1929.7,3.2078]
[1741965370459,3.3085,1930.3,1930.1,3.2078]
[1741965370659,3.3085,1930.3,1930.2,1.3614]
[1741965370965,3.30849,1930.3,1930.2,40.8]
[1741965371358,0.00776036,1930.4,1930.2,40.8]
[1741965371567,1.04394036,1930.4,1930.2,40.8]
[1741965371755,0.00776036,1930.4,1930.2,44.0078]
[1741965371950,1.04389036,1930.4,1930.3,1.3614]
[1741965372560,0.00776036,1930.4,1930.3,1.3614]
[1741965372757,0.8678,1931.0,1930.3,6.45175]
[1741965372967,1.4379,1930.9,1930.8,1.03592]
[1741965373468,1.03586,1930.9,1930.8,3.2078]
[1741965373658,1.4379,1931.1,1930.8,3.2078]
[1741965373963,4.3419,1931.3,1930.8,3.2078]
[1741965373964,0.8424,1931.3,1931.1,1.03573]
[1741965374165,2.58871,1931.7,1931.2,4.5282]
[1741965374166,0.7945,1931.7,1931.2,4.5282]
[1741965374465,1.03558,1931.5,1931.2,4.5282]
[1741965374658,0.00776036,1931.6,1931.4,3.2078]
[1741965374966,0.00776036,1931.6,1931.5,2.35594]
[1741965375364,3.2078,1932.3,1931.5,44.6204]
[1741965375561,1.4379,1932.2,1931.9,1.03531]
[1741965375765,1.03522,1932.1,1932.0,1.3341]
[1741965375966,1.03522,1932.1,1931.8,3.2078]
[1741965375967,1.0354,1931.8,1931.5,41.83551]
[1741965376160,1.03544,1931.7,1931.6,1.3341]
[1741965376355,2.71,1931.9,1931.6,4.5419]
[1741965376570,2.71,1931.9,1931.5,40.8]
[1741965376571,1.03549,1931.6,1931.5,40.8]
[1741965376868,1.34917356,1931.8,1931.3,3.21556036]
[1741965377064,1.34917356,1931.8,1931.5,3.2078]
[1741965377262,0.00517356,1931.8,1931.6,2.36955]
[1741965377465,0.00517356,1931.8,1931.7,5.57734]
[1741965377771,0.00517356,1931.8,1931.7,4.5419]
[1741965378066,0.00517356,1931.8,1931.7,2.36954]
[1741965379069,3.75312,1932.3,1932.1,1.03517]
[1741965379267,1.03519,1932.2,1932.0,4.24306]
[1741965379469,1.03522,1932.1,1932.0,3.2078]
[1741965379660,2.38542,1932.1,1932.0,3.2078]
[1741965379856,4.0672,1932.1,1931.6,3.2078]
[1741965380064,4.0672,1932.1,1931.8,3.2078]
[1741965380567,1.03533,1931.9,1931.8,3.2078]
[1741965381163,4.0642,1932.1,1931.8,3.2078]
[1741965381359,4.0642,1932.1,1932.0,1.03527]
[1741965381669,1.3502,1932.1,1932.0,4.24307]
[1741965381868,1.03522,1932.1,1931.9,1.4128]
[1741965382071,1.03527,1932.1,1931.9,2.44811]
[1741965382370,1.03525,1932.1,1931.9,5.65589]
[1741965382669,1.4101,1932.2,1931.9,4.6206]
[1741965382976,1.03527,1932.0,1931.9,4.6206]
[1741965383269,2.58806,1932.1,1931.6,4.24325]
[1741965383458,1.03542,1931.8,1931.6,5.63336]
[1741965383770,1.03542,1931.8,1931.7,1.03544]
[1741965383963,1.03539,1931.8,1931.6,3.2078]
[1741965384164,3.74137,1931.9,1931.7,1.03542]
[1741965384363,3.74137,1931.9,1931.8,4.24318]
[1741965384364,3.74133,1931.9,1931.8,4.24318]
[1741965384569,2.706,1931.9,1931.8,4.24318]
[1741965384776,2.706,1931.9,1931.8,3.2078]
[1741965385260,1.4101,1932.0,1931.8,3.2078]
[1741965385466,2.7,1932.2,1931.9,3.92372]
[1741965385664,2.7,1932.2,1932.1,4.24302]
[1741965385869,25.977,1932.5,1932.2,1.03514]
[1741965386072,1.4337,1932.2,1932.1,4.24299]
[1741965386264,26.8093,1932.5,1932.1,4.24299]
[1741965386265,1.4337,1932.4,1932.3,1.03507]
[1741965386460,1.4337,1932.4,1932.3,45.04287]
[1741965386666,2.46876,1932.4,1932.3,44.0078]
[1741965386865,2.46876,1932.4,1932.3,40.8]
[1741965387763,4.0435,1932.7,1932.6,1.03495]
[1741965388060,5.978,1932.9,1932.5,3.2078]
[1741965388061,7.01282,1932.9,1932.5,3.2078]
[1741965388269,8.678,1932.9,1932.7,1.03485]
[1741965388461,1.03495,1932.6,1932.5,4.25055036]
[1741965388665,1.03489,1932.8,1932.6,1.03495]
[1741965388868,1.03495,1932.6,1932.5,3.21556036]
[1741965389068,1.03495,1932.6,1932.5,0.00776036]
[1741965389264,1.4519,1932.7,1932.6,1.03495]
[1741965389471,1.03495,1932.6,1932.5,0.00776036]
[1741965389668,1.4519,1932.7,1932.6,1.03495]
[1741965389669,2.48683,1932.7,1932.6,1.03495]
[1741965389864,1.4519,1932.7,1932.5,0.00776036]
[1741965390066,1.4519,1932.7,1932.5,3.21556036]
[1741965390067,1.03495,1932.6,1932.5,3.21556036]
[1741965390265,2.48685,1932.7,1932.5,3.21556036]
[1741965390463,1.03495,1932.6,1932.5,3.21556036]
[1741965390769,8.46485,1932.6,1932.5,0.00776036]
[1741965390972,2.58756,1932.5,1931.8,4.5967]
[1741965391174,1.03521,1932.2,1932.1,1.03521]
[1741965391373,1.03513,1932.3,1932.2,1.03513]
[1741965391575,1.4422,1932.3,1932.2,2.42403]
[1741965391777,1.4422,1932.3,1932.2,5.63183]
[1741965392266,3.74269036,1932.7,1932.2,4.5967]
[1741965392569,1.03498,1932.6,1932.5,1.03497]
[1741965392772,1.4422,1932.6,1932.4,4.24285]
[1741965392970,1.03501,1932.5,1932.4,4.24285]
[1741965393168,1.4422,1932.6,1932.4,3.2078]
[1741965393374,1.4422,1932.6,1932.5,1.03501]
[1741965393578,0.00776036,1932.7,1932.6,1.03495]
[1741965393774,1.04266036,1932.7,1932.6,4.24275]
[1741965393976,2.43346036,1932.7,1932.6,3.2078]
[1741965394272,2.43346036,1932.7,1932.6,4.24275]
[1741965394673,2.43346036,1932.7,1932.6,1.03495]
[1741965395169,0.00776036,1932.7,1932.6,4.24275]
[1741965395366,0.00776036,1932.7,1932.6,6.74275]
[1741965395367,3.6e-07,1932.7,1932.6,6.74275]
[1741965395963,3.6e-07,1932.7,1932.6,47.54275]
[1741965396370,3.6e-07,1932.7,1932.6,53.51275]
[1741965396976,1.03455,1933.4,1933.3,1.03456]
[1741965397169,1.3102,1933.5,1933.3,4.24233]
[1741965397370,1.03452,1933.4,1933.3,3.2078]
[1741965397573,1.3102,1933.5,1933.1,1.03464]
[1741965397871,1.3102,1933.3,1933.2,45.04243]
[1741965398073,10.335,1933.8,1933.5,1.03447]
[1741965398268,10.335,1933.8,1933.2,44.0078]
[1741965398269,0.8331,1933.8,1933.4,3.2078]
[1741965398470,4.72912,1933.8,1933.4,4.24231]
[1741965398667,1.03452,1933.4,1933.2,40.8]
[1741965398870,1.3102,1933.3,1933.2,41.83461]
[1741965399372,1.03445,1933.6,1933.5,1.03447]
[1741965399575,1.3102,1933.6,1933.5,1.03447]
[1741965399771,1.03449,1933.5,1933.4,1.0345]
[1741965399971,1.3102,1933.6,1933.5,1.03447]
[1741965400175,5.978,1933.7,1933.5,3.2078]
[1741965400374,3.21575,1933.8,1933.6,2.36068]
[1741965400572,1.03436,1933.7,1933.6,2.36068]
[1741965400773,1.3483,1933.7,1933.6,2.36072]
[1741965401074,1.03429,1933.9,1933.6,1.3263]
[1741965401275,1.03434,1933.8,1933.6,5.5685]
[1741965401485,1.3483,1933.7,1933.6,4.2422]
[1741965402579,1.0343,1933.9,1933.8,1.03431]
[1741965402580,1.03429,1933.9,1933.8,1.03431]
[1741965402774,1.3483,1934.0,1933.6,3.2078]
[1741965403078,1.3483,1933.8,1933.7,4.24215]
[1741965403282,3.5902,1934.1,1933.7,4.5494]
[1741965403576,4.9417,1934.1,1933.9,4.24203]
[1741965403777,3.25389,1934.1,1933.9,4.24203]
[1741965403966,3.25389,1934.1,1933.9,4.24202]
[1741965404167,3.25389,1934.1,1933.9,3.2078]
[1741965404168,2.2197,1934.1,1933.9,3.2078]
[1741965404371,2.38567,1934.1,1933.9,4.24204]
[1741965404577,1.3515,1934.1,1934.0,1.0342]
[1741965404778,1.3515,1934.1,1933.9,3.2078]
[1741965404975,1.0342,1934.0,1933.9,3.2078]
[1741965405180,2.38568,1934.1,1933.9,5.58364]
[1741965405379,2.38567,1934.1,1933.9,5.58363]
[1741965405682,2.38567,1934.1,1933.9,5.58362]
[1741965405983,1.0342,1934.0,1933.9,3.2078]
[1741965406182,2.3961,1934.0,1933.9,3.2078]
[1741965406575,1.3619,1934.0,1933.6,4.5497]
[1741965406775,1.3619,1934.0,1933.8,3.2078]
[1741965407184,2.3961,1934.0,1933.9,1.3419]
[1741965407482,1.3619,1934.0,1933.8,3.2078]
[1741965407680,1.03426,1933.9,1933.8,3.2078]
[1741965407982,1.03426,1933.9,1933.8,4.24211]
[1741965408184,1.03426,1933.9,1933.8,3.2078]
[1741965408772,2.1804,1934.0,1933.7,1.03435]
[1741965408986,2.1804,1934.0,1933.6,4.5497]
[1741965409178,2.1804,1934.0,1933.9,1.03426]
[1741965409379,1.03426,1933.9,1933.8,3.2078]
[1741965409577,1.3947,1933.9,1933.8,4.24211]
[1741965409777,6.65967,1934.5,1933.8,3.2078]
[1741965409983,1.03415,1934.1,1934.0,3.2078]
[1741965410186,1.03415,1934.1,1934.0,4.242]
[1741965410384,8.56347,1934.1,1933.3,0.8027]
[1741965410579,1.03436,1933.7,1933.6,4.24218]
[1741965410887,1.03435,1933.8,1933.7,1.03434]
[1741965411094,1.3947,1933.8,1933.7,2.41094]
[1741965411279,2.42901,1933.8,1933.7,2.41094]
[1741965411480,1.3947,1933.8,1933.7,1.03436]
[1741965411686,5.15594,1934.0,1933.9,1.03426]
[1741965412281,1.03426,1933.9,1933.8,4.24208]
[1741965412487,2.42476,1933.9,1933.8,3.2078]
[1741965412884,4.14556,1933.9,1933.8,4.24211]
[1741965413185,2.58578,1933.8,1933.3,4.0105]
[1741965413389,1.03458,1933.3,1933.1,3.21556036]
[1741965413592,1.03458,1933.3,1933.1,4.64296036]
[1741965413885,1.03458,1933.3,1933.1,3.21556036]
[1741965414082,3.28118,1933.3,1933.1,3.21556036]
[1741965414679,1.03463,1933.2,1933.1,0.00776036]
[1741965414885,2.42513,1933.2,1933.1,0.00776036]
[1741965416677,5.63293,1933.2,1933.1,0.00776036]
[1741965416881,8.13293,1933.2,1933.1,0.00776036]
[1741965417686,2.42513,1933.2,1933.1,0.00776036]
[1741965417891,5.15713,1933.2,1933.1,0.00776036]
[1741965419392,2.42513,1933.2,1933.1,0.00776036]
[1741965419687,2.42513,1933.2,1932.3,11.14533]
[1741965419688,3.8905,1933.2,1932.6,3.2078]
[1741965419888,2.58724,1932.8,1932.1,10.5557]
[1741965420189,3.2078,1933.0,1932.6,1.03495]
[1741965420190,3.5768,1932.7,1932.6,1.03495]
[1741965420388,3.81092,1932.7,1932.6,3.2078]
[1741965420588,2.776,1932.7,1932.6,3.2078]
[1741965420894,1.0349,1932.7,1932.6,3.2078]
[1741965421987,5.978,1933.6,1932.6,5.7078]
[1741965422186,0.8022,1933.6,1933.1,3.2078]
[1741965422382,0.8022,1933.6,1933.2,1.3645]
[1741965422383,1.03458,1933.3,1933.2,1.3645]
[1741965422587,1.03458,1933.3,1933.2,42.1645]
[1741965422979,1.03458,1933.3,1933.2,40.8]
[1741965423680,1.359,1933.5,1933.2,40.8]
[1741965423886,1.03452,1933.4,1933.3,1.3645]
[1741965424081,5.978,1933.4,1932.6,3.2078]
[1741965424285,7.3854,1933.3,1932.7,1.03489]
[1741965424590,7.3854,1933.3,1932.6,4.24273]
[1741965424788,1.03478,1933.0,1932.8,3.2078]
[1741965424984,1.03495,1932.6,1932.5,3.21556036]
[1741965425291,1.03495,1932.6,1932.5,44.01556036]
[1741965425491,1.03495,1932.6,1932.5,40.80776036]
[1741965425986,14.1556,1932.9,1932.5,40.80776036]
[1741965425987,10.9478,1932.9,1932.5,44.01556036]
[1741965426195,3.86685,1932.8,1932.5,44.01556036]
[1741965426394,5.21449,1932.8,1932.7,3.2078]
[1741965426691,3.86685,1932.8,1932.7,3.2078]
[1741965426884,1.0349,1932.7,1932.6,1.3169]
[1741965427084,7.3256,1932.7,1932.0,3.2078]
[1741965427288,1.03522,1932.1,1932.0,1.4248]
[1741965428296,1.03522,1932.1,1932.0,42.2248]
[1741965428692,2.44502,1932.1,1932.0,42.2248]
[1741965428989,1.04295036,1932.2,1932.0,45.4326]
[1741965429192,0.00776036,1932.2,1932.0,45.4326]
[1741965429390,1.04295036,1932.2,1932.0,45.4326]
[1741965429791,1.03522,1932.1,1932.0,42.2248]
[1741965430497,1.03522,1932.1,1932.0,45.4326]
[1741965430700,1.03522,1932.1,1932.0,42.2248]
[1741965430993,0.00776036,1932.2,1932.0,45.4326]
[1741965431195,3.2078,1933.0,1932.0,47.9326]
[1741965431387,5.978,1933.3,1932.9,3.2078]
[1741965431388,8.9551,1933.3,1932.9,3.2078]
[1741965431587,1.03469,1933.1,1933.0,1.4148]
[1741965432092,1.03469,1933.1,1933.0,40.8]
[1741965432291,1.03485,1932.8,1932.7,1.4148]
[1741965432487,16.02892,1933.0,1932.1,3.2078]
[1741965432793,2.44312,1932.7,1932.4,4.6226]
[1741965432992,5.978,1932.9,1932.4,4.63036036]
[1741965433196,5.978,1932.9,1932.7,3.2078]
[1741965433494,3.2078,1933.2,1932.8,42.2519]
[1741965433495,5.978,1933.2,1932.8,42.2519]
[1741965433795,5.978,1933.2,1932.9,1.4519]
[1741965433998,4.0024,1933.4,1933.2,1.03461]
[1741965434296,1.0344,1933.7,1933.3,5.69427]
[1741965434486,1.03446,1933.6,1933.4,1.4519]
[1741965434688,1.03446,1933.6,1933.5,40.8]
[1741965434887,4.2362,1933.8,1933.5,40.8]
[1741965435089,1.03442,1933.6,1933.5,40.8]
[1741965435289,7.444,1933.8,1933.5,40.8]
[1741965435290,1.03437,1933.7,1933.5,40.8]
[1741965435500,4.2362,1933.8,1933.5,40.8]
[1741965435689,1.03442,1933.6,1933.5,40.8]
[1741965435997,4.2362,1933.8,1933.5,40.8]
[1741965435998,4.2512,1933.8,1933.5,40.8]
[1741965436198,1.03436,1933.7,1933.5,40.8]
[1741965436994,1.03427,1933.9,1933.6,3.2078]
[1741965437195,7.4112,1934.1,1933.6,4.031]
[1741965437587,1.0342,1934.0,1933.8,1.0343]
[1741965437990,1.03422,1934.0,1933.8,1.03427]
[1741965438185,23.234,1934.2,1933.8,3.2078]
[1741965438503,1.03415,1934.1,1934.0,3.2078]
[1741965439086,1.03415,1934.1,1934.0,4.242]
[1741965439300,23.234,1934.2,1934.0,4.242]
[1741965439496,1.4332,1934.3,1934.0,3.2078]
[1741965439795,6.0748,1934.4,1933.5,44.0078]
[1741965439988,6.0748,1934.4,1934.0,3.2078]
[1741965440189,7.4,1934.4,1934.0,3.2078]
[1741965440391,0.7812,1934.7,1934.2,3.2078]
[1741965440586,3.2078,1935.0,1934.5,3.2078]
[1741965440791,1.03381,1934.8,1934.5,4.24173]
[1741965440987,3.2078,1935.0,1934.5,4.24173]
[1741965440988,3.2078,1935.0,1934.6,40.8]
[1741965441194,3.2078,1935.0,1934.6,40.80776036]
[1741965441393,1.03383,1934.7,1934.6,40.80776036]
[1741965441799,4.2042,1934.9,1934.6,40.80776036]
[1741965442307,3.91274,1934.9,1934.6,40.80776036]
[1741965442596,1.0337,1935.0,1934.7,3.2078]
[1741965442799,1.347,1935.1,1934.7,3.2078]
[1741965442992,0.8507,1935.4,1935.0,3.2078]
[1741965443191,3.2078,1935.5,1935.0,3.2078]
[1741965443391,24.0651,1936.3,1934.8,1.6372]
[1741965443392,3.2078,1936.1,1935.2,3.2078]
[1741965443592,34.78427,1936.3,1935.3,3.2078]
[1741965443593,1.03331,1935.7,1935.3,3.2078]
[1741965443793,3.2078,1935.8,1934.8,4.5392]
[1741965443993,3.2078,1935.8,1935.4,3.2078]
[1741965444195,3.2078,1936.4,1935.6,3.2078]
[1741965444399,3.2078,1936.4,1935.9,3.2078]
[1741965444600,3.2078,1936.8,1935.9,2.933]
[1741965444894,4.24088,1936.1,1936.0,3.6e-07]
[1741965445103,7.19088,1936.1,1936.0,3.6e-07]
[1741965445401,1.03306,1936.2,1936.0,3.6e-07]
[1741965445601,1.03305,1936.2,1936.0,40.80000036]
[1741965445801,1.03308,1936.1,1936.0,40.80000036]
[1741965446008,1.03308,1936.1,1936.0,3.6e-07]
[1741965446508,0.00776001,1936.2,1936.0,40.80000036]
[1741965446805,2.46228,1936.1,1936.0,40.80000036]
[1741965447002,3.26228,1936.1,1936.0,3.6e-07]
[1741965447202,5.76228,1936.1,1936.0,3.6e-07]
[1741965447508,4.04218,1936.1,1936.0,3.6e-07]
[1741965448014,0.00776001,1936.2,1936.0,3.6e-07]
[1741965448309,1.03308,1936.1,1936.0,3.6e-07]
[1741965448701,1.04081001,1936.2,1936.0,3.6e-07]
[1741965449008,0.00776001,1936.2,1936.0,3.6e-07]
[1741965449206,1.04081001,1936.2,1936.0,3.6e-07]
[1741965449409,0.00776001,1936.2,1936.0,3.6e-07]
[1741965449708,0.00776001,1936.2,1936.1,3.2078]
[1741965450007,29.201,1937.0,1936.1,3.2078]
[1741965450205,1.03274,1936.8,1936.4,1.0329]
[1741965450398,30.5251,1937.0,1936.5,3.2078]
[1741965450604,23.223,1937.0,1936.6,40.8]
[1741965450808,3.2078,1937.1,1936.6,40.8]
[1741965451002,5.978,1937.4,1937.0,3.2078]
[1741965451209,3.2078,1937.5,1936.7,4.24054]
[1741965451210,1.03255,1937.1,1936.7,4.24054]
[1741965451404,3.2078,1937.5,1936.7,3.2078]
[1741965451405,1.3241,1937.3,1936.7,3.2078]
[1741965451710,1.03251,1937.2,1936.9,4.24045]
[1741965451910,1.03251,1937.2,1936.9,3.2078]
[1741965452205,4.6078,1937.5,1937.0,40.8]
[1741965452410,1.03255,1937.1,1937.0,40.8]
[1741965452908,3.2078,1937.3,1937.0,40.8]
[1741965453106,1.03255,1937.1,1937.0,40.8]
[1741965453311,4.429,1937.5,1937.0,40.8]
[1741965453312,1.03245,1937.3,1937.0,40.8]
[1741965453506,1.03244,1937.4,1937.1,3.2078]
[1741965453811,3.2078,1937.4,1937.0,40.8]
[1741965454000,6.2328,1937.6,1937.0,40.8]
[1741965454205,6.2328,1937.6,1937.1,3.2078]
[1741965454408,1.03235,1937.5,1937.1,4.6542]
[1741965454611,3.2078,1937.6,1937.1,4.6542]